fUSD/lending_fUSD_20260128
["ID","MTS","AMOUNT","RATE_DAILY","PERIOD"]
[403828743,1769570832268,-195.0,0.00015441,2]
[403828744,1769570832296,-500.0,0.00015581,2]
[403828745,1769570832322,-166.66,0.00015599,2]
[403828746,1769570832347,-200.0,0.00015611,2]
[403828747,1769570832371,-500.0,0.00015683,2]
[403828748,1769570832394,-195.0,0.00015698,2]
[403828749,1769570832418,-167.44245603,0.00015827,2]
[403828753,1769570917170,66153.32553502,0.00016,4]
[403828780,1769571032304,-151.0,0.00015897,2]
[403828781,1769571032314,-151.0,0.00015897,2]
[403828782,1769571032324,-151.0,0.00015906,2]
[403828783,1769571032333,-166.66,0.00015914,2]
[403828784,1769571032342,-86.23360131,0.00015919,2]
[403828785,1769571032378,-64.76639869,0.00015919,2]
[403828786,1769571032391,-380.74172483,0.00015941,2]
[403828787,1769571032402,-178.13827517,0.00015941,2]
[403828788,1769571032412,-1777.79,0.00015967,2]
[403828789,1769571032422,-202.0,0.00015977,2]
[403828790,1769571032432,-1200.0,0.00015977,2]
[403828791,1769571032441,-300.0,0.00015977,2]
[403828792,1769571032450,-500.0,0.00015978,2]
[403828793,1769571032462,-500.0,0.00015978,2]
[403828794,1769571032472,-150.0,0.00015978,2]
[403828795,1769571032482,-150.0,0.00015978,2]
[403828796,1769571032491,-500.0,0.00015978,2]
[403828797,1769571032501,-150.0,0.00015978,2]
[403828798,1769571032510,-150.0,0.00015978,2]
[403828799,1769571032520,-150.0,0.00015978,2]
[403828800,1769571032530,-500.0,0.00015978,2]
[403828801,1769571032541,-150.0,0.00015978,2]
[403828802,1769571032552,-150.0,0.00015978,2]
[403828803,1769571032561,-500.0,0.00015978,2]
[403828804,1769571032571,-826.0,0.00015978,2]
[403828806,1769571032580,-150.0,0.00015978,2]
[403828807,1769571032589,-500.0,0.00015978,2]
[403828808,1769571032598,-500.0,0.00015978,2]
[403828809,1769571032609,-211.65603666,0.00015978,2]
[403828810,1769571032618,-500.0,0.00015978,2]
[403828811,1769571032627,-150.88509061,0.00015978,2]
[403828813,1769571032636,-150.0,0.00015978,2]
[403828814,1769571032645,-150.0,0.00015978,2]
[403828816,1769571032654,-500.0,0.00015978,2]
[403828818,1769571032663,-192.87961532,0.00016,2]
[403828820,1769571032672,-150.00557152,0.00016017,2]
[403828822,1769571032681,-500.0,0.00016033,2]
[403828824,1769571032691,-500.0,0.00016033,2]
[403828826,1769571032700,-150.0,0.00016033,2]
[403828829,1769571032710,-500.0,0.00016033,2]
[403828831,1769571032719,-41.59888974,0.00016033,2]
[403828841,1769571032764,-108.40111026,0.00016033,2]
[403828844,1769571032773,-212.03163788,0.00016033,2]
[403828848,1769571032785,-287.96836212,0.00016033,2]
[403828851,1769571032793,-150.0,0.00016033,2]
[403828854,1769571032803,-133.41215366,0.00016033,2]
[403828888,1769571033120,-16.58784634,0.00016033,2]
[403828890,1769571033131,-296.93512366,0.00016033,2]
[403828897,1769571033182,-203.06487634,0.00016033,2]
[403828899,1769571033192,-826.0,0.00016033,2]
[403828901,1769571033202,-150.0,0.00016033,2]
[403828903,1769571033212,-500.0,0.00016033,2]
[403828905,1769571033221,-500.0,0.00016033,2]
[403828907,1769571033231,-500.0,0.00016033,2]
[403828910,1769571033241,-150.0,0.00016033,2]
[403828912,1769571033251,-249.13238104,0.00016033,2]
[403828914,1769571033261,-500.0,0.00016033,2]
[403828916,1769571033271,-18155.58855328,0.00016063,2]
[403828918,1769571033282,-12952.05017211,0.00016063,2]
[403829052,1769571038393,-500.0,0.00016063,2]
[403829053,1769571038404,-6548.09848506,0.00016063,2]
[403829054,1769571038511,-107000.9038253,0.00016063,2]
[403829055,1769571038620,-313288.27636425,0.00016063,2]
[403829056,1769571038630,-500.0,0.00016088,2]
[403829057,1769571038640,-500.0,0.00016088,2]
[403829058,1769571038650,-150.0,0.00016088,2]
[403829059,1769571038660,-203.2521373,0.00016088,2]
[403829060,1769571038669,-156.9240002,0.00016088,2]
[403829062,1769571038679,-150.0,0.00016088,2]
[403829064,1769571038688,-150.0,0.00016088,2]
[403829065,1769571038698,-150.0,0.00016088,2]
[403829067,1769571038707,-500.0,0.00016088,2]
[403829069,1769571038717,-826.0,0.00016088,2]
[403829071,1769571038727,-150.0,0.00016088,2]
[403829073,1769571038737,-500.0,0.00016088,2]
[403829075,1769571038746,-500.0,0.00016088,2]
[403829077,1769571038756,-500.0,0.00016088,2]
[403829079,1769571038766,-150.0,0.00016088,2]
[403829081,1769571038776,-500.0,0.00016088,2]
[403829083,1769571038785,-517.93,0.00016095,2]
[403829085,1769571038796,-517.93,0.00016121,2]
[403829088,1769571038806,-533.53008935,0.00016142,2]
[403829090,1769571038816,-500.0,0.00016142,2]
[403829091,1769571038826,-197.67895854,0.00016142,2]
[403829093,1769571038835,-150.0,0.00016142,2]
[403829096,1769571038846,-150.0,0.00016142,2]
[403829098,1769571038856,-500.0,0.00016142,2]
[403829100,1769571038866,-826.0,0.00016142,2]
[403829102,1769571038875,-150.0,0.00016142,2]
[403829103,1769571038885,-500.0,0.00016142,2]
[403829104,1769571038894,-500.0,0.00016142,2]
[403829105,1769571038904,-500.0,0.00016142,2]
[403829106,1769571038914,-150.0,0.00016142,2]
[403829107,1769571038923,-500.0,0.00016142,2]
[403829108,1769571038932,-517.93,0.00016146,2]
[403829109,1769571038942,-517.93,0.00016171,2]
[403829110,1769571038954,-517.93,0.00016197,2]
[403829111,1769571038964,-500.0,0.00016197,2]
[403829112,1769571038974,-250.0,0.00016197,2]
[403829113,1769571038984,-150.0,0.00016197,2]
[403829114,1769571038994,-500.0,0.00016197,2]
[403829115,1769571039006,-826.0,0.00016197,2]
[403829116,1769571039016,-250.0,0.00016197,2]
[403829118,1769571039026,-500.0,0.00016197,2]
[403829120,1769571039035,-500.0,0.00016197,2]
[403829122,1769571039045,-150.0,0.00016197,2]
[403829124,1769571039054,-500.0,0.00016197,2]
[403829126,1769571039063,-500.0,0.00016197,2]
[403829128,1769571039072,-14219.78069063,0.000162,5]
[403829130,1769571039081,-517.93,0.00016222,2]
[403829132,1769571039090,-166.66,0.00016229,2]
[403829134,1769571039100,-517.93,0.00016248,2]
[403829135,1769571039111,-500.0,0.00016251,2]
[403829138,1769571039120,-211.30472734,0.00016251,2]
[403829139,1769571039129,-438.36389094,0.00016251,2]
[403829142,1769571039139,-259.45174886,0.00016251,2]
[403829144,1769571039149,-500.0,0.00016252,2]
[403829146,1769571039160,-245.40506936,0.00016252,2]
[403829148,1769571039169,-500.0,0.00016252,2]
[403829150,1769571039178,-826.0,0.00016252,2]
[403829152,1769571039187,-451.33043874,0.00016252,2]
[403829154,1769571039197,-565.69115399,0.00016252,2]
[403829156,1769571039206,-182.75731559,0.00016252,2]
[403829158,1769571039215,-500.0,0.00016252,2]
[403829159,1769571039224,-500.0,0.00016252,2]
[403829161,1769571039234,-150.0,0.00016252,2]
[403829163,1769571039243,-290.82383437,0.00016252,2]
[403829165,1769571039252,-235.87046984,0.00016252,2]
[403829167,1769571039262,-500.0,0.00016252,2]
[403829169,1769571039271,-500.0,0.00016252,2]
[403829172,1769571039280,-500.0,0.00016252,2]
[403829174,1769571039290,-150.0,0.00016252,2]
[403829176,1769571039299,-500.0,0.00016252,2]
[403829178,1769571039309,-150.0,0.00016252,2]
[403829180,1769571039318,-150.0,0.00016252,2]
[403829182,1769571039327,-150.0,0.00016252,2]
[403829184,1769571039337,-500.0,0.00016252,2]
[403829186,1769571039346,-150.0,0.00016252,2]
[403829188,1769571039357,-166.45,0.00016262,2]
[403829190,1769571039366,-517.93,0.00016273,2]
[403829192,1769571039375,-517.93,0.00016299,2]
[403829194,1769571039386,-500.0,0.00016307,2]
[403829196,1769571039395,-826.0,0.00016307,2]
[403829198,1769571039404,-500.0,0.00016307,2]
[403829200,1769571039413,-500.0,0.00016307,2]
[403829202,1769571039423,-251.02717303,0.00016307,2]
[403829204,1769571039433,-500.0,0.00016307,2]
[403829206,1769571039443,-500.0,0.00016307,2]
[403829208,1769571039452,-500.0,0.00016307,2]
[403829210,1769571039464,-150.0,0.00016307,2]
[403829212,1769571039473,-500.0,0.00016307,2]
[403829214,1769571039482,-150.0,0.00016307,2]
[403829216,1769571039491,-150.0,0.00016307,2]
[403829218,1769571039500,-150.63660336,0.00016307,2]
[403829220,1769571039510,-500.0,0.00016307,2]
[403829222,1769571039520,-150.0,0.00016307,2]
[403829224,1769571039531,-517.93,0.00016324,2]
[403829226,1769571039540,-517.93,0.00016349,2]
[403829228,1769571039550,-500.0,0.00016362,2]
[403829230,1769571039560,-826.0,0.00016362,2]
[403829232,1769571039569,-269.31182315,0.00016362,2]
[403829234,1769571039578,-500.0,0.00016362,2]
[403829236,1769571039588,-500.0,0.00016362,2]
[403829238,1769571039597,-500.0,0.00016362,2]
[403829240,1769571039607,-500.0,0.00016362,2]
[403829242,1769571039616,-261.51199107,0.00016362,2]
[403829244,1769571039625,-500.0,0.00016362,2]
[403829246,1769571039634,-150.0,0.00016362,2]
[403829248,1769571039643,-214.10627264,0.00016362,2]
[403829250,1769571039652,-500.0,0.00016362,2]
[403829252,1769571039662,-150.0,0.00016362,2]
[403829254,1769571039671,-502.99903399,0.00016373,2]
[403829256,1769571039679,-517.93,0.00016375,2]
[403829258,1769571039689,-517.93,0.000164,2]
[403829260,1769571039698,-500.0,0.00016416,2]
[403829262,1769571039707,-826.0,0.00016416,2]
[403829264,1769571039716,-500.0,0.00016416,2]
[403829266,1769571039725,-500.0,0.00016416,2]
[403829268,1769571039734,-566.04897556,0.00016416,2]
[403829270,1769571039743,-500.0,0.00016416,2]
[403829272,1769571039753,-241.78692632,0.00016416,2]
[403829274,1769571039762,-165.90736041,0.00016416,2]
[403829276,1769571039771,-500.0,0.00016416,2]
[403829278,1769571039780,-150.0,0.00016416,2]
[403829280,1769571039790,-557.66,0.00016425,2]
[403829282,1769571039804,-517.93,0.00016426,2]
[403829284,1769571039813,-517.93,0.00016451,2]
[403829286,1769571039822,-500.0,0.00016471,2]
[403829288,1769571039831,-826.0,0.00016471,2]
[403829290,1769571039842,-500.0,0.00016471,2]
[403829292,1769571039851,-500.0,0.00016471,2]
[403829295,1769571039861,-500.0,0.00016471,2]
[403829297,1769571039871,-502.04160627,0.00016471,2]
[403829299,1769571039881,-150.0,0.00016471,2]
[403829301,1769571039890,-517.93,0.00016477,2]
[403829303,1769571039901,-517.93,0.00016502,2]
[403829305,1769571039911,-500.0,0.00016526,2]
[403829307,1769571039920,-826.0,0.00016526,2]
[403829308,1769571039930,-500.0,0.00016526,2]
[403829310,1769571039940,-500.0,0.00016526,2]
[403829312,1769571039949,-352.06755918,0.00016526,2]
[403829315,1769571039959,-204.62121756,0.00016526,2]
[403829317,1769571039970,-517.93,0.00016527,2]
[403829319,1769571039979,-166.66,0.00016544,2]
[403829321,1769571039988,-517.93,0.00016553,2]
[403829323,1769571039997,-517.93,0.00016578,2]
[403829325,1769571040006,-500.0,0.00016581,2]
[403829327,1769571040016,-826.0,0.00016581,2]
[403829329,1769571040025,-500.0,0.00016581,2]
[403829331,1769571040034,-500.0,0.00016581,2]
[403829333,1769571040043,-500.0,0.00016636,2]
[403829335,1769571040052,-826.0,0.00016636,2]
[403829337,1769571040061,-484.9787496,0.00016636,2]
[403829339,1769571040070,-500.0,0.00016636,2]
[403829341,1769571040079,-500.0,0.0001669,2]
[403829343,1769571040089,-826.0,0.0001669,2]
[403829345,1769571040098,-500.0,0.0001669,2]
[403829347,1769571040107,-557.66,0.00016699,2]
[403829349,1769571040115,-517.33129808,0.00016723,2]
[403829351,1769571040127,-558.88,0.00016738,2]
[403829353,1769571040135,-500.0,0.00016745,2]
[403829355,1769571040144,-826.0,0.00016745,2]
[403829357,1769571040153,-500.0,0.00016745,2]
[403829359,1769571040162,-500.0,0.000168,2]
[403829361,1769571040171,-826.0,0.000168,2]
[403829363,1769571040180,-257.91969894,0.000168,2]
[403829365,1769571040189,-225.4,0.00016814,2]
[403829367,1769571040198,-500.0,0.00016855,2]
[403829369,1769571040207,-826.0,0.00016855,2]
[403829371,1769571040215,-18116.75017502,0.000169,2]
[403829373,1769571040225,-500.0,0.0001691,2]
[403829375,1769571040234,-826.0,0.0001691,2]
[403829377,1769571040242,-7000.94724637,0.00016914,2]
[403829379,1769571040252,-500.0,0.00016964,2]
[403829381,1769571040261,-826.0,0.00016964,2]
[403829383,1769571040275,-707.0,0.0001697,2]
[403829384,1769571040284,-557.66,0.00016973,2]
[403829386,1769571040295,-169.73741276,0.00016974,2]
[403829388,1769571040304,-11997.03885543,0.00017,2]
[403829390,1769571040314,-3563.38527312,0.00017,2]
[403829392,1769571040323,-252522.5599628,0.00017,2]
[403829430,1769571040670,-1016.37876946,0.00017,2]
[403829436,1769571040711,-339492.30732063,0.00017,2]
[403829438,1769571040721,-250.0,0.00017,2]
[403829440,1769571040730,-500.0,0.00017014,2]
[403829442,1769571040740,-270.80019516,0.00017019,2]
[403829444,1769571040750,-826.0,0.00017019,2]
[403829446,1769571040759,-7000.94724637,0.00017024,2]
[403829448,1769571040768,-707.0,0.00017042,2]
[403829450,1769571040777,-826.0,0.00017074,2]
[403829452,1769571040786,-510.0,0.00017095,2]
[403829454,1769571040795,-275.48815625,0.00017099,2]
[403829456,1769571040804,-322.6107,0.00017099,2]
[403829458,1769571040814,-500.0,0.00017099,2]
[403829460,1769571040823,-1000.0,0.00017099,2]
[403829462,1769571040833,-854.2589148,0.00017099,2]
[403829464,1769571040842,-500.0,0.00017099,2]
[403829466,1769571040851,-1000.0,0.00017099,2]
[403829468,1769571040862,-500.0,0.00017099,2]
[403829470,1769571040871,-500.0,0.00017099,2]
[403829472,1769571040880,-500.0,0.00017099,2]
[403829474,1769571040890,-500.0,0.00017099,2]
[403829476,1769571040900,-500.0,0.00017099,2]
[403829478,1769571040910,-500.0,0.00017099,2]
[403829480,1769571040919,-500.0,0.00017099,2]
[403829482,1769571040929,-250.0,0.00017099,2]
[403829484,1769571040938,-500.0,0.00017099,2]
[403829486,1769571040947,-250.0,0.00017099,2]
[403829487,1769571040957,-500.0,0.00017099,2]
[403829488,1769571040967,-250.0,0.00017099,2]
[403829489,1769571040976,-250.0,0.00017099,2]
[403829490,1769571040986,-250.0,0.00017099,2]
[403829491,1769571040996,-250.0,0.00017099,2]
[403829492,1769571041005,-250.0,0.00017099,2]
[403829493,1769571041015,-250.0,0.00017099,2]
[403829494,1769571041025,-250.0,0.00017099,2]
[403829496,1769571041034,-250.0,0.00017099,2]
[403829498,1769571041043,-250.0,0.00017099,2]
[403829500,1769571041053,-250.0,0.00017099,2]
[403829502,1769571041064,-500.0,0.00017099,2]
[403829504,1769571041074,-250.0,0.00017099,2]
[403829506,1769571041083,-250.0,0.00017099,2]
[403829508,1769571041092,-500.0,0.00017099,2]
[403829509,1769571041102,-250.0,0.00017099,2]
[403829510,1769571041111,-500.0,0.00017099,2]
[403829511,1769571041122,-500.0,0.00017099,2]
[403829512,1769571041131,-250.0,0.00017099,2]
[403829513,1769571041141,-250.0,0.00017099,2]
[403829514,1769571041152,-250.0,0.00017099,2]
[403829515,1769571041164,-500.0,0.00017099,2]
[403829516,1769571041174,-250.0,0.00017099,2]
[403829517,1769571041184,-250.0,0.00017099,2]
[403829518,1769571041194,-500.0,0.00017099,2]
[403829519,1769571041206,-250.0,0.00017099,2]
[403829520,1769571041218,-500.0,0.00017099,2]
[403829521,1769571041228,-250.0,0.00017099,2]
[403829522,1769571041238,-250.0,0.00017099,2]
[403829523,1769571041248,-250.0,0.00017099,2]
[403829524,1769571041257,-250.0,0.00017099,2]
[403829525,1769571041266,-250.0,0.00017099,2]
[403829526,1769571041276,-250.0,0.00017099,2]
[403829527,1769571041285,-174.61919141,0.00017099,2]
[403829528,1769571041294,-250.0,0.00017099,2]
[403829529,1769571041303,-209.40437684,0.00017099,2]
[403829530,1769571041314,-500.0,0.00017099,2]
[403829531,1769571041323,-578.20924308,0.00017099,2]
[403829532,1769571041332,-500.0,0.00017099,2]
[403829533,1769571041341,-151.0,0.00017099,2]
[403829534,1769571041351,-500.0,0.00017099,2]
[403829535,1769571041360,-500.0,0.00017099,2]
[403829536,1769571041370,-826.0,0.00017129,2]
[403829537,1769571041379,-7000.94724637,0.00017133,2]
[403829538,1769571041392,-1000.0,0.00017149,2]
[403829539,1769571041401,-1000.0,0.00017149,2]
[403829540,1769571041411,-1000.0,0.00017149,2]
[403829541,1769571041420,-1000.0,0.00017149,2]
[403829542,1769571041431,-217.15233878,0.00017154,2]
[403829543,1769571041442,-826.0,0.00017183,2]
[403829544,1769571041452,-225.18697532,0.00017209,2]
[403829545,1769571041464,-834.193436,0.00017238,2]
[403829546,1769571041473,-7000.94724637,0.00017243,2]
[403829547,1769571041483,-557.66,0.00017247,2]
[403829548,1769571041493,-233.51889341,0.00017264,2]
[403829549,1769571041503,-1300.0,0.000173,6]
[403829550,1769571041513,-150.0,0.00017315,2]
[403829551,1769571041523,-500.0,0.00017315,2]
[403829552,1769571041532,-242.15909246,0.00017319,2]
[403829553,1769571041541,-150.00557152,0.0001732,2]
[403829554,1769571041551,-7000.94724637,0.00017352,2]
[403829555,1769571041559,-250.27618672,0.0001737,2]
[403829556,1769571041568,-500.0,0.0001737,2]
[403829557,1769571041577,-251.11897888,0.00017374,2]
[403829558,1769571041587,-2600.0,0.000174,6]
[403829559,1769571041598,-201.0,0.00017401,2]
[403829560,1769571041608,-173.68711241,0.0001741,2]
[403829561,1769571041617,-500.0,0.00017425,2]
[403829562,1769571041626,-250.0,0.00017428,2]
[403829563,1769571041635,-260.4103811,0.00017429,2]
[403829564,1769571041644,-7000.94724637,0.00017462,2]
[403829565,1769571041654,-500.0,0.00017479,2]
[403829566,1769571041664,-270.0455652,0.00017484,2]
[403829567,1769571041674,-250.0,0.00017487,2]
[403829568,1769571041684,-657.88569144,0.00017487,2]
[403829569,1769571041693,-195.0,0.00017487,2]
[403829570,1769571041704,-28628.1686,0.000175,2]
[403829571,1769571041714,-4000.0,0.000175,6]
[403829572,1769571041723,-557.70857683,0.00017521,2]
[403829573,1769571041732,-180.48876966,0.00017527,2]
[403829574,1769571041741,-445.9409,0.00017527,2]
[403829575,1769571041754,-500.0,0.00017534,2]
[403829576,1769571041763,-558.88,0.00017535,2]
[403829577,1769571041772,-280.03725112,0.00017539,2]
[403829578,1769571041781,-201.0,0.0001755,2]
[403829579,1769571041790,-1680.0,0.00017556,2]
[403829580,1769571041800,-7000.94724637,0.00017571,2]
[403829581,1769571041809,-500.0,0.00017589,2]
[403829582,1769571041819,-290.39862941,0.00017594,2]
[403829583,1769571041828,-5300.0,0.000176,6]
[403829584,1769571041838,-184.91554767,0.00017617,2]
[403829585,1769571041847,-1376.415146,0.00017619,2]
[403829586,1769571041857,-180.48876965,0.0001762,2]
[403829587,1769571041866,-500.0,0.00017626,2]
[403829588,1769571041875,-500.0,0.00017626,2]
[403829589,1769571041884,-515.28066526,0.00017626,2]
[403829590,1769571041894,-1153.84,0.00017627,2]
[403829591,1769571041903,-1691.51,0.00017627,2]
[403829592,1769571041913,-674.63684387,0.0001764,2]
[403829593,1769571041922,-500.0,0.00017644,2]
[403829594,1769571041931,-885.86649465,0.00017647,2]
[403829595,1769571041942,-181.08010149,0.00017647,2]
[403829596,1769571041952,-301.1433787,0.00017649,2]
[403829597,1769571042279,-7000.94724637,0.00017681,2]
[403829598,1769571042289,-363.51122534,0.00017699,2]
[403829599,1769571042299,-6700.0,0.000177,6]
[403829600,1769571042315,-180.48876965,0.00017714,2]
[403829601,1769571042324,-2193.433,0.00017722,2]
[403829602,1769571042335,-181.242,0.00017722,2]
[403829603,1769571042343,-201.0,0.00017727,2]
[403829604,1769571042354,-10000.0,0.00017763,2]
[403829605,1769571042364,-7000.94724637,0.0001779,2]
[403829606,1769571042374,-1300.0,0.000178,6]
[403829607,1769571042389,-180.48876965,0.00017807,2]
[403829608,1769571042398,-312.14818392,0.00017814,2]
[403829609,1769571042409,-823.76399604,0.00017814,2]
[403829610,1769571042419,-1453.21733288,0.00017814,2]
[403829611,1769571042430,-2173.92621877,0.00017814,2]
[403829612,1769571042439,-302.20755,0.0001782,2]
[403829613,1769571042452,-302.20756,0.0001782,2]
[403829614,1769571042463,-200.0,0.00017855,2]
[403829615,1769571042474,-200.0,0.00017856,2]
[403829616,1769571042484,-166.45,0.00017888,2]
[403829617,1769571042494,-152.38355142,0.000179,2]
[403829618,1769571042504,-1300.0,0.000179,6]
[403829619,1769571042513,-217.13537466,0.000179,2]
[403829620,1769571042523,-5423.7170479,0.000179,2]
[403829621,1769571042532,-7000.94724637,0.000179,2]
[403829622,1769571042541,-180.48876965,0.000179,2]
[403829623,1769571042550,-744.85080208,0.000179,2]
[403829624,1769571042560,-8401.0,0.000179,2]
[403829625,1769571042570,-201.0,0.00017932,2]
[403829626,1769571042581,-500.0,0.00017973,2]
[403829627,1769571042591,-150.0,0.00017973,2]
[403829628,1769571042599,-502.48269816,0.00017982,2]
[403829629,1769571042608,-222.7140054,0.00017982,2]
[403829630,1769571042617,-184.91554767,0.0001799,2]
[403829631,1769571042628,-184.91554767,0.0001799,2]
[403829632,1769571042637,-243.65670637,0.00017991,2]
[403829633,1769571042646,-1363.2741133,0.00017997,2]
[403829634,1769571042654,-3842.6034249,0.00017997,2]
[403829635,1769571042664,-266874.7921485,0.00017997,2]
[403829636,1769571042673,-1078.8305762,0.00017997,2]
[403829637,1769571042683,-20104.4275996,0.00017997,2]
[403829638,1769571042692,-951.4185181,0.00017997,2]
[403829639,1769571042702,-60075.494214,0.00017997,2]
[403829640,1769571042711,-1334.9244342,0.00017997,2]
[403829641,1769571042720,-151.0,0.00017997,2]
[403829642,1769571042730,-151.0,0.00017997,2]
[403829643,1769571042739,-151.0,0.00017997,2]
[403829644,1769571042748,-151.0,0.00017997,2]
[403829645,1769571042757,-151.0,0.00017997,2]
[403829646,1769571042766,-151.0,0.00017997,2]
[403829647,1769571042775,-796.731528,0.00017997,2]
[403829648,1769571042785,-796.731528,0.00017997,2]
[403829649,1769571042794,-796.731528,0.00017997,2]
[403829650,1769571042803,-796.731528,0.00017997,2]
[403829651,1769571042814,-519.705503,0.00017997,2]
[403829652,1769571042823,-519.705503,0.00017997,2]
[403829653,1769571042832,-519.705503,0.00017997,2]
[403829654,1769571042842,-519.705503,0.00017997,2]
[403829655,1769571042851,-151.0,0.00017997,2]
[403829656,1769571042860,-151.0,0.00017997,2]
[403829657,1769571042869,-208.614424,0.00017997,2]
[403829658,1769571042879,-208.614424,0.00017997,2]
[403829659,1769571042888,-208.614424,0.00017997,2]
[403829660,1769571042897,-208.614424,0.00017997,2]
[403829661,1769571042907,-150.0,0.00017999,2]
[403829662,1769571042916,-233.54605209,0.00017999,2]
[403829663,1769571042925,-300.0,0.00017999,2]
[403829664,1769571042935,-300.0,0.00017999,2]
[403829665,1769571042944,-300.0,0.00017999,2]
[403829666,1769571042953,-666.0,0.00017999,2]
[403829667,1769571042963,-300.0,0.00017999,2]
[403829668,1769571042972,-666.0,0.00017999,2]
[403829669,1769571042982,-1613990.57635321,0.00018,2]
[403829670,1769571042991,-25304.50498257,0.00018,2]
[403829671,1769571043593,-480.611,0.00017148,2]
[403829672,1769571043603,-228.23051518,0.000179,3]
[403829673,1769571043612,-1851.85166503,0.00018,2]
[403829679,1769571045428,-55093.11868524,0.00018,2]
[403829680,1769571045535,-568.31961139,0.00018,2]
[403829697,1769571181375,1200.0,0.000159,5]
[403829859,1769572046390,1600.0,0.000159,5]
[403829864,1769572091602,1651.92,0.00015,2]
[403829877,1769572231408,-556.71,0.00015375,2]
[403829878,1769572231417,-500.0,0.00015527,2]
[403829879,1769572231426,-909.76254021,0.00015627,2]
[403829880,1769572231459,-1492.52745979,0.00015627,2]
[403829881,1769572231469,-1000.0,0.00015661,2]
[403829882,1769572231478,-357.62254021,0.00015775,2]
[403829883,1769572231566,-1311.51062349,0.00015775,2]
[403829884,1769572231577,-862.9468363,0.00015775,2]
[403829885,1769572231587,-183.0,0.000159,2]
[403829886,1769572231596,-151.0,0.00015901,2]
[403829887,1769572231605,-293.56264735,0.00015904,2]
[403829888,1769572231620,-2303.22682107,0.00015904,2]
[403829889,1769572231632,-1741.21936042,0.00015904,2]
[403829890,1769572231676,-7289.05098953,0.00015904,2]
[403829944,1769572234847,660.42,0.00015209,2]
[403829954,1769572237533,-516.20174193,0.00015894,2]
[403829955,1769572237587,-5175.81825807,0.00015894,2]
[403829956,1769572237596,-1871.54722023,0.00015894,2]
[403829957,1769572237641,-860.85068214,0.00015894,2]
[403829958,1769572237652,-933.13714092,0.00015894,2]
[403829959,1769572237695,-2026.48495671,0.00015894,2]
[403829960,1769572237705,-4928.51504379,0.00015904,2]
[403830018,1769572239587,-296.9,0.00015904,2]
[403830019,1769572239694,-983147.52513784,0.00015904,2]
[403830020,1769572239704,-750.02,0.00015918,2]
[403830021,1769572239713,-151.0,0.00015989,2]
[403830022,1769572239722,-151.0,0.00015991,2]
[403830023,1769572239732,-300.0,0.00015992,2]
[403830024,1769572239744,-734.86,0.00015992,2]
[403830025,1769572239754,-500.0,0.00015992,2]
[403830026,1769572239763,-500.0,0.00015992,2]
[403830027,1769572239772,-500.0,0.00015992,2]
[403830028,1769572239782,-500.0,0.00015992,2]
[403830029,1769572239792,-500.0,0.00015992,2]
[403830030,1769572239802,-500.0,0.00015992,2]
[403830031,1769572239813,-500.0,0.00015992,2]
[403830032,1769572239823,-181.14560038,0.00015992,2]
[403830033,1769572239832,-500.0,0.00015992,2]
[403830034,1769572239842,-500.0,0.00015992,2]